lending/lending_fUSD_20250121
["ID","MTS","AMOUNT","RATE_DAILY","PERIOD"]
[349856732,1737462647377,-500.0,0.00019726,2]
[349856733,1737462647396,-500.0,0.00019726,2]
[349856734,1737462647406,-1339.45,0.00019726,2]
[349856735,1737462647417,-500.0,0.00019726,2]
[349856736,1737462647427,-1723.67,0.00019726,2]
[349856737,1737462647438,-500.0,0.00019726,2]
[349856738,1737462647447,-500.0,0.00019726,2]
[349856739,1737462647458,-740.18,0.00019726,2]
[349856740,1737462647468,-869.64,0.00019726,2]
[349856741,1737462647478,-500.0,0.00019726,2]
[349856742,1737462647488,-2486.71,0.00019726,2]
[349856743,1737462647498,-500.0,0.00019726,2]
[349856744,1737462647508,-726.91,0.00019726,2]
[349856745,1737462647520,-500.0,0.00019726,2]
[349856746,1737462647530,-500.0,0.00019726,2]
[349856747,1737462647541,-500.0,0.00019726,2]
[349856748,1737462647553,-505.51609333,0.00019726,2]
[349856749,1737462647563,-614.47,0.00019726,2]
[349856750,1737462647578,-514.44267669,0.00019726,2]
[349856751,1737462647589,-321.87749717,0.00019726,2]
[349856752,1737462647600,-500.0,0.00019726,2]
[349856753,1737462647612,-500.0,0.00019726,2]
[349856754,1737462647624,-964.42,0.00019726,2]
[349856755,1737462647633,-2007.07,0.00019726,2]
[349856756,1737462647643,-500.0,0.00019726,2]
[349856757,1737462647654,-500.0,0.00019726,2]
[349856758,1737462647664,-637.76,0.00019726,2]
[349856759,1737462647674,-500.0,0.00019726,2]
[349856760,1737462647683,-256.4022282,0.00019726,2]
[349856761,1737462647693,-500.0,0.00019726,2]
[349856762,1737462647703,-500.0,0.00019726,2]
[349856763,1737462647714,-500.0,0.00019726,2]
[349856764,1737462647724,-500.0,0.00019726,2]
[349856765,1737462647733,-500.0,0.00019726,2]
[349856766,1737462647744,-1790.18,0.00019726,2]
[349856767,1737462647754,-500.0,0.00019726,2]
[349856768,1737462647765,-500.0,0.00019726,2]
[349856769,1737462647775,-500.0,0.00019726,2]
[349856770,1737462647786,-1152.1,0.00019726,2]
[349856771,1737462647797,-500.0,0.00019726,2]
[349856772,1737462647808,-500.0,0.00019726,2]
[349856773,1737462647821,-660.0,0.00019726,2]
[349856774,1737462647831,-500.0,0.00019726,2]
[349856775,1737462647842,-560.18,0.00019726,2]
[349856776,1737462647853,-891.08,0.00019726,2]
[349856777,1737462647863,-500.0,0.00019726,2]
[349856778,1737462647873,-500.0,0.00019726,2]
[349856779,1737462647884,-1540.94,0.00019726,2]
[349856780,1737462647895,-548.75,0.00019726,2]
[349856781,1737462647906,-1805.75,0.00019726,2]
[349856782,1737462647917,-1138.48,0.00019726,2]
[349856783,1737462647927,-500.0,0.00019726,2]
[349856784,1737462647936,-500.0,0.00019726,2]
[349856785,1737462647946,-500.0,0.00019726,2]
[349856786,1737462647956,-500.0,0.00019726,2]
[349856787,1737462647967,-1397.74,0.00019726,2]
[349856788,1737462647976,-500.0,0.00019726,2]
[349856789,1737462647986,-500.0,0.00019726,2]
[349856790,1737462647996,-500.0,0.00019726,2]
[349856791,1737462648005,-1522.16,0.00019726,2]
[349856792,1737462648016,-500.0,0.00019726,2]
[349856793,1737462648026,-215.11823575,0.00019726,2]
[349856794,1737462648037,-500.0,0.00019726,2]
[349856795,1737462648047,-500.0,0.00019726,2]
[349856796,1737462648057,-500.0,0.00019726,2]
[349856797,1737462648071,-500.0,0.00019726,2]
[349856798,1737462648082,-3484.07,0.00019767,7]
[349856799,1737462648094,-3484.07,0.00019767,7]
[349856800,1737462648105,-3484.07,0.00019767,7]
[349856801,1737462648116,-3484.07,0.00019767,7]
[349856802,1737462648126,-238.0,0.0001988,2]
[349856803,1737462648136,-500.0,0.00019898,2]
[349856804,1737462648146,-500.0,0.00019898,2]
[349856805,1737462648156,-500.0,0.00019898,2]
[349856806,1737462648165,-334.66,0.00019898,2]
[349856807,1737462648175,-500.0,0.00019898,2]
[349856808,1737462648185,-500.0,0.00019898,2]
[349856809,1737462648195,-500.0,0.00019898,2]
[349856810,1737462648205,-500.0,0.00019898,2]
[349856811,1737462648215,-500.0,0.00019898,2]
[349856812,1737462648226,-1430.76757568,0.000199,7]
[349856813,1737462648235,-30000.0,0.00019951,2]
[349856814,1737462648245,-500.0,0.00019973,2]
[349856815,1737462648255,-151.0,0.00019993,2]
[349856816,1737462648265,-500.0,0.00019999,2]
[349856817,1737462648275,-500.0,0.0002,2]
[349856818,1737462648286,-500.0,0.0002,2]
[349856819,1737462648296,-500.0,0.0002,2]
[349856820,1737462648311,-689.66,0.0002,2]
[349856821,1737462648325,-316.96,0.0002,2]
[349856822,1737462648334,-178.45466,0.0002,2]
[349856823,1737462648345,-500.0,0.0002,2]
[349856824,1737462648354,-201.93,0.0002,2]
[349856825,1737462648364,-306.279279,0.0002,2]
[349856826,1737462648374,-364.25149967,0.0002,2]
[349856827,1737462648384,-1043.19,0.0002,2]
[349856828,1737462648397,-500.0,0.0002,2]
[349856829,1737462648407,-500.0,0.0002,2]
[349856830,1737462648418,-500.0,0.0002,2]
[349856831,1737462648427,-500.0,0.0002,2]
[349856832,1737462648437,-500.0,0.0002,2]
[349856833,1737462648447,-500.0,0.0002,2]
[349856834,1737462648458,-500.0,0.0002,2]
[349856835,1737462648468,-500.0,0.0002,2]
[349856836,1737462648479,-272.24082311,0.0002,2]
[349856837,1737462648489,-500.0,0.0002,2]
[349856838,1737462648500,-500.0,0.0002,2]
[349856839,1737462648511,-500.0,0.0002,2]
[349856840,1737462648522,-500.0,0.0002,2]
[349856841,1737462648534,-510.00388083,0.0002,2]
[349856842,1737462648545,-500.0,0.0002,2]
[349856843,1737462648555,-500.0,0.0002,2]
[349856844,1737462648571,-500.0,0.0002,2]
[349856845,1737462648581,-500.0,0.0002,2]
[349856846,1737462648593,-500.0,0.0002,2]
[349856847,1737462648604,-144852.0,0.0002,2]
[349856848,1737462648617,-500.0,0.0002,2]
[349856849,1737462648629,-500.0,0.0002,2]
[349856850,1737462648640,-500.0,0.0002,2]
[349856851,1737462648651,-500.0,0.0002,2]
[349856852,1737462648663,-158.36,0.0002,2]
[349856853,1737462648674,-500.0,0.0002,2]
[349856854,1737462648686,-361.6371953,0.0002,2]
[349856855,1737462648700,-643.19,0.0002,2]
[349856856,1737462648711,-614.98,0.0002,2]
[349856857,1737462648721,-500.0,0.0002,2]
[349856858,1737462648732,-549.04,0.0002,2]
[349856859,1737462648743,-500.0,0.0002,2]
[349856860,1737462648754,-1619.26,0.0002,2]
[349856861,1737462648765,-801.78,0.0002,2]
[349856862,1737462648776,-655.22,0.0002,2]
[349856863,1737462648786,-500.0,0.0002,2]
[349856864,1737462648797,-652.34,0.0002,2]
[349856865,1737462648808,-650.71,0.0002,2]
[349856866,1737462648823,-500.0,0.0002,2]
[349856867,1737462648834,-1340.0,0.0002,2]
[349856868,1737462648845,-500.0,0.0002,2]
[349856869,1737462648855,-1000.0,0.0002,2]
[349856870,1737462648865,-500.0,0.0002,2]
[349856871,1737462648875,-1025.72,0.0002,2]
[349856872,1737462648886,-756.43,0.0002,2]
[349856873,1737462648897,-2343.32,0.0002,2]
[349856874,1737462648907,-7000.14,0.0002,2]
[349856875,1737462648917,-530.11,0.0002,2]
[349856876,1737462648928,-694.4,0.0002,2]
[349856877,1737462648938,-500.0,0.0002,2]
[349856878,1737462648949,-500.0,0.0002,2]
[349856879,1737462648959,-500.0,0.0002,2]
[349856880,1737462648970,-156.624954,0.0002,2]
[349856881,1737462648980,-500.0,0.0002,2]
[349856882,1737462648991,-532.79,0.0002,2]
[349856883,1737462649000,-714.16,0.0002,2]
[349856884,1737462649011,-500.0,0.0002,2]
[349856885,1737462649021,-500.0,0.0002,2]
[349856886,1737462649031,-704.42,0.0002,2]
[349856887,1737462649042,-1391.73885533,0.0002,5]
[349856888,1737462649053,-1217.27,0.0002,2]
[349856889,1737462649067,-907.48,0.0002,2]
[349856890,1737462649076,-633.95,0.0002,2]
[349856891,1737462649087,-500.0,0.0002,2]
[349856892,1737462649098,-1505.01,0.0002,2]
[349856893,1737462649109,-500.0,0.0002,2]
[349856894,1737462649120,-500.0,0.0002,2]
[349856895,1737462649130,-1390.6,0.0002,2]
[349856896,1737462649141,-500.0,0.0002,2]
[349856897,1737462649151,-500.0,0.0002,2]
[349856898,1737462649161,-500.0,0.0002,2]
[349856899,1737462649171,-1520.62,0.0002,2]
[349856900,1737462649181,-500.0,0.0002,2]
[349856901,1737462649191,-1814.66,0.0002,2]
[349856902,1737462649201,-45674.48874322,0.0002,2]
[349856903,1737462649211,-1534.94,0.0002,2]
[349856904,1737462649221,-500.0,0.0002,2]
[349856905,1737462649231,-1633.23,0.0002,2]
[349856906,1737462649241,-467160.11151543,0.0002,4]
[349856907,1737462649251,-61111.67454527,0.0002,4]
[349856908,1737462649261,-500.0,0.0002,2]
[349856909,1737462649271,-500.0,0.0002,2]
[349856910,1737462649282,-536.97,0.0002,2]
[349856911,1737462649292,-831.03,0.0002,2]
[349856912,1737462649302,-500.0,0.0002,2]
[349856913,1737462649313,-451.14455577,0.0002,2]
[349856914,1737462649324,-1404.98,0.0002,2]
[349856915,1737462649335,-500.0,0.0002,2]
[349856916,1737462649345,-2262.0,0.0002,2]
[349856917,1737462649357,-500.0,0.0002,2]
[349856918,1737462649367,-500.0,0.0002,2]
[349856919,1737462649378,-645.6,0.0002,2]
[349856920,1737462649388,-1533.37,0.0002,2]
[349856921,1737462649399,-500.0,0.0002,2]
[349856922,1737462649409,-511.02399426,0.0002,2]
[349856923,1737462649419,-500.0,0.0002,2]
[349856924,1737462649429,-500.0,0.0002,2]
[349856925,1737462649439,-500.0,0.0002,2]
[349856926,1737462649449,-1440.15,0.0002,2]
[349856927,1737462649460,-300.0,0.0002,2]
[349856928,1737462649471,-725.59,0.0002,2]
[349856929,1737462649481,-5000.3763523,0.0002,2]
[349856930,1737462649491,-500.0,0.0002,2]
[349856931,1737462649502,-650.01,0.0002,2]
[349856932,1737462649512,-500.0,0.0002,2]
[349856933,1737462649522,-500.0,0.0002,2]
[349856934,1737462649532,-500.0,0.0002,2]
[349856935,1737462649543,-2359.45235867,0.0002,2]
[349856936,1737462649553,-27341.74355345,0.0002,2]
[349856937,1737462649566,-500.0,0.0002,2]
[349856938,1737462649577,-554.28,0.0002,2]
[349856939,1737462649587,-1013.0,0.0002,6]
[349856940,1737462649599,-413.49141697,0.0002,2]
[349856941,1737462649610,-500.0,0.0002,2]
[349856942,1737462649624,-500.0,0.0002,2]
[349856943,1737462649635,-857.5,0.0002,2]
[349856944,1737462649645,-2147.0457727,0.0002,2]
[349856945,1737462649825,-1717.9,0.0002,2]
[349856946,1737462649836,-500.0,0.0002,2]
[349856947,1737462649847,-500.0,0.0002,2]
[349856948,1737462649858,-1100.42,0.0002,2]
[349856949,1737462649869,-500.0,0.0002,2]
[349856950,1737462649880,-500.0,0.0002,2]
[349856951,1737462649891,-535.14,0.0002,2]
[349856952,1737462649902,-549.22,0.0002,2]
[349856953,1737462649913,-500.0,0.0002,2]
[349856954,1737462649923,-1243.7,0.0002,2]
[349856955,1737462649934,-1944.53,0.0002,2]
[349856956,1737462649944,-500.0,0.0002,2]
[349856957,1737462649955,-500.0,0.0002,2]
[349856958,1737462649965,-1058.2,0.0002,2]
[349856959,1737462649975,-500.0,0.0002,2]
[349856960,1737462649984,-505.75,0.0002,2]
[349856961,1737462649995,-500.0,0.0002,2]
[349856962,1737462650006,-1010.73,0.0002,2]
[349856963,1737462650016,-500.0,0.0002,2]
[349856964,1737462650028,-500.0,0.0002,2]
[349856965,1737462650038,-500.0,0.0002,2]
[349856966,1737462650049,-500.0,0.0002,2]
[349856967,1737462650059,-889.96,0.0002,2]
[349856968,1737462650072,-836.65,0.0002,2]
[349856969,1737462650082,-500.0,0.0002,2]
[349856970,1737462650092,-500.0,0.0002,2]
[349856971,1737462650102,-522.62894212,0.0002,2]
[349856972,1737462650111,-500.0,0.0002,2]
[349856973,1737462650121,-754.67,0.0002,2]
[349856974,1737462650130,-663.33,0.0002,2]
[349856975,1737462650139,-500.0,0.0002,2]
[349856976,1737462650150,-500.0,0.0002,2]
[349856977,1737462650159,-500.0,0.0002,2]
[349856978,1737462650170,-629.98,0.0002,2]
[349856979,1737462650180,-500.0,0.0002,2]
[349856980,1737462650189,-2093.6,0.0002,2]
[349856981,1737462650199,-500.0,0.0002,2]
[349856982,1737462650208,-500.0,0.0002,2]
[349856983,1737462650218,-500.0,0.0002,2]
[349856984,1737462650228,-500.0,0.0002,2]
[349856985,1737462650238,-1339.45,0.0002,2]
[349856986,1737462650249,-500.0,0.0002,2]
[349856987,1737462650259,-1723.67,0.0002,2]
[349856988,1737462650269,-500.0,0.0002,2]
[349856989,1737462650279,-500.0,0.0002,2]
[349856990,1737462650289,-740.18,0.0002,2]
[349856991,1737462650299,-869.64,0.0002,2]
[349856992,1737462650309,-2486.71,0.0002,2]
[349856993,1737462650322,-557.89568996,0.0002,2]
[349856994,1737462650331,-500.0,0.0002,2]
[349856995,1737462650340,-726.91,0.0002,2]
[349856996,1737462650350,-500.0,0.0002,2]
[349856997,1737462650359,-500.0,0.0002,2]
[349856998,1737462650368,-500.0,0.0002,2]
[349856999,1737462650378,-614.47,0.0002,2]
[349857000,1737462650387,-500.0,0.0002,2]
[349857001,1737462650397,-500.0,0.0002,2]
[349857002,1737462650407,-964.42,0.0002,2]
[349857003,1737462650416,-2007.07,0.0002,2]
[349857004,1737462650426,-500.0,0.0002,2]
[349857005,1737462650435,-500.0,0.0002,2]
[349857006,1737462650445,-637.76,0.0002,2]
[349857007,1737462650455,-500.0,0.0002,2]
[349857008,1737462650465,-641.35413624,0.0002,2]
[349857009,1737462650475,-500.0,0.0002,2]
[349857010,1737462650486,-2405.09,0.0002,2]
[349857011,1737462650496,-500.0,0.0002,2]
[349857012,1737462650507,-500.0,0.0002,2]
[349857013,1737462650517,-1790.18,0.0002,2]
[349857014,1737462650527,-322.54860794,0.0002,2]
[349857015,1737462650536,-234.40756801,0.0002,2]
[349857016,1737462650547,-500.0,0.0002,2]
[349857017,1737462650557,-1152.1,0.0002,2]
[349857018,1737462650568,-500.0,0.0002,2]
[349857019,1737462650579,-500.0,0.0002,2]
[349857020,1737462650588,-660.0,0.0002,2]
[349857021,1737462650598,-500.0,0.0002,2]
[349857022,1737462650610,-891.08,0.0002,2]
[349857023,1737462650626,-151.39429056,0.0002,2]
[349857024,1737462650637,-500.0,0.0002,2]
[349857025,1737462650647,-1540.94,0.0002,2]
[349857026,1737462650658,-1805.75,0.0002,2]
[349857027,1737462650667,-1138.48,0.0002,2]
[349857028,1737462650677,-500.0,0.0002,2]
[349857029,1737462650686,-500.0,0.0002,2]
[349857030,1737462650697,-500.0,0.0002,2]
[349857031,1737462650706,-500.0,0.0002,2]
[349857032,1737462650715,-1397.74,0.0002,2]
[349857033,1737462650725,-500.0,0.0002,2]
[349857034,1737462650734,-500.0,0.0002,2]
[349857035,1737462650743,-500.0,0.0002,2]
[349857036,1737462650753,-1522.16,0.0002,2]
[349857037,1737462650763,-500.0,0.0002,2]
[349857038,1737462650772,-500.0,0.0002,2]
[349857039,1737462650782,-500.0,0.0002,2]
[349857040,1737462650791,-500.0,0.0002,2]
[349857041,1737462650801,-1000.0,0.0002,2]
[349857042,1737462650810,-2562.06,0.00020007,2]
[349857043,1737462650823,-250.0,0.00020021,2]
[349857044,1737462650832,-3484.07,0.00020041,7]
[349857045,1737462650842,-3484.07,0.00020041,7]
[349857046,1737462650852,-5000.0,0.00020094,2]
[349857047,1737462650862,-206.17630001,0.000201,2]
[349857048,1737462650872,-2573.24,0.00020111,2]
[349857049,1737462650882,-5000.0,0.0002016,2]
[349857050,1737462650892,-5000.0,0.00020162,2]
[349857051,1737462650901,-5000.0,0.00020166,2]
[349857052,1737462650911,-500.0,0.00020172,2]
[349857053,1737462650921,-333.7,0.00020172,2]
[349857054,1737462650931,-500.0,0.00020172,2]
[349857055,1737462650940,-500.0,0.00020172,2]
[349857056,1737462650950,-417.15078659,0.00020172,2]
[349857057,1737462650959,-1853.0,0.000202,2]
[349857058,1737462650969,-5000.0,0.00020209,2]
[349857059,1737462650980,-5000.0,0.00020213,2]
[349857060,1737462650989,-2520.56,0.00020215,2]
[349857061,1737462650998,-201.07,0.0002022,2]
[349857062,1737462651007,-2986.65,0.00020225,2]
[349857063,1737462651017,-238.0,0.0002023,2]
[349857064,1737462651026,-2548.66,0.00020232,2]
[349857065,1737462651036,-1596.21,0.00020241,2]
[349857066,1737462651045,-1000.0,0.00020257,2]
[349857067,1737462651054,-5000.0,0.00020268,2]
[349857068,1737462651064,-330.19031463,0.00020273,2]
[349857069,1737462651076,-500.0,0.00020273,2]
[349857070,1737462651085,-500.0,0.00020273,2]
[349857071,1737462651095,-689.66,0.00020273,2]
[349857072,1737462651104,-178.45466,0.00020273,2]
[349857073,1737462651113,-500.0,0.00020273,2]
[349857074,1737462651123,-306.279279,0.00020273,2]
[349857075,1737462651132,-1043.19,0.00020273,2]
[349857076,1737462651143,-500.0,0.00020273,2]
[349857077,1737462651153,-500.0,0.00020273,2]
[349857078,1737462651162,-500.0,0.00020273,2]
[349857079,1737462651171,-500.0,0.00020273,2]
[349857080,1737462651180,-500.0,0.00020273,2]
[349857081,1737462651190,-500.0,0.00020273,2]
[349857082,1737462651199,-500.0,0.00020273,2]
[349857083,1737462651209,-500.0,0.00020273,2]
[349857084,1737462651219,-500.0,0.00020273,2]
[349857085,1737462651229,-500.0,0.00020273,2]
[349857086,1737462651238,-500.0,0.00020273,2]
[349857087,1737462651247,-500.0,0.00020273,2]
[349857088,1737462651257,-500.0,0.00020273,2]
[349857089,1737462651266,-500.0,0.00020273,2]
[349857090,1737462651276,-500.0,0.00020273,2]
[349857091,1737462651285,-500.0,0.00020273,2]
[349857092,1737462651295,-500.0,0.00020273,2]
[349857093,1737462651305,-500.0,0.00020273,2]
[349857094,1737462651315,-500.0,0.00020273,2]
[349857095,1737462651328,-500.0,0.00020273,2]
[349857096,1737462651338,-500.0,0.00020273,2]
[349857097,1737462651348,-500.0,0.00020273,2]
[349857098,1737462651358,-158.171155,0.00020273,2]
[349857099,1737462651367,-643.19,0.00020273,2]
[349857100,1737462651377,-614.98,0.00020273,2]
[349857101,1737462651387,-500.0,0.00020273,2]
[349857102,1737462651397,-1786.21,0.00020273,2]
[349857103,1737462651406,-236.12,0.00020273,2]
[349857104,1737462651416,-1619.26,0.00020273,2]
[349857105,1737462651426,-801.78,0.00020273,2]
[349857106,1737462651436,-655.22,0.00020273,2]
[349857107,1737462651446,-500.0,0.00020273,2]
[349857108,1737462651456,-652.34,0.00020273,2]
[349857109,1737462651465,-650.71,0.00020273,2]
[349857110,1737462651475,-500.0,0.00020273,2]
[349857111,1737462651484,-1340.0,0.00020273,2]
[349857112,1737462651495,-500.0,0.00020273,2]
[349857113,1737462651505,-1000.0,0.00020273,2]
[349857114,1737462651514,-500.0,0.00020273,2]
[349857115,1737462651523,-1025.72,0.00020273,2]
[349857116,1737462651532,-756.43,0.00020273,2]
[349857117,1737462651542,-2343.32,0.00020273,2]
[349857118,1737462651552,-7000.14,0.00020273,2]
[349857119,1737462651561,-530.11,0.00020273,2]
[349857120,1737462651572,-694.4,0.00020273,2]
[349857121,1737462651582,-500.0,0.00020273,2]
[349857122,1737462651592,-500.0,0.00020273,2]
[349857123,1737462651601,-462.9371027,0.00020273,2]
[349857124,1737462651611,-714.16,0.00020273,2]
[349857125,1737462651620,-500.0,0.00020273,2]
[349857126,1737462651633,-500.0,0.00020273,2]
[349857127,1737462651643,-704.42,0.00020273,2]
[349857128,1737462651652,-1217.27,0.00020273,2]
[349857129,1737462651663,-907.48,0.00020273,2]
[349857130,1737462651673,-633.95,0.00020273,2]
[349857131,1737462651682,-500.0,0.00020273,2]
[349857132,1737462651691,-1505.01,0.00020273,2]
[349857133,1737462651701,-500.0,0.00020273,2]
[349857134,1737462651710,-1390.6,0.00020273,2]
[349857135,1737462651719,-500.0,0.00020273,2]
[349857136,1737462651728,-500.0,0.00020273,2]
[349857137,1737462651737,-500.0,0.00020273,2]
[349857138,1737462651747,-1520.62,0.00020273,2]
[349857139,1737462651756,-500.0,0.00020273,2]
[349857140,1737462651765,-1814.66,0.00020273,2]
[349857141,1737462651775,-1534.94,0.00020273,2]
[349857142,1737462651784,-1633.23,0.00020273,2]
[349857143,1737462651793,-500.0,0.00020273,2]
[349857144,1737462651802,-500.0,0.00020273,2]
[349857145,1737462651811,-536.97,0.00020273,2]
[349857146,1737462651825,-831.03,0.00020273,2]
[349857147,1737462651834,-554.29,0.00020273,2]
[349857148,1737462651843,-1404.98,0.00020273,2]
[349857149,1737462651852,-2262.0,0.00020273,2]
[349857150,1737462651862,-500.0,0.00020273,2]
[349857151,1737462651871,-517.29758797,0.00020273,2]
[349857152,1737462651880,-645.6,0.00020273,2]
[349857153,1737462651890,-1533.37,0.00020273,2]
[349857154,1737462651899,-500.0,0.00020273,2]
[349857155,1737462651909,-500.0,0.00020273,2]
[349857156,1737462651919,-500.0,0.00020273,2]
[349857157,1737462651929,-1440.15,0.00020273,2]
[349857158,1737462651939,-300.0,0.00020273,2]
[349857159,1737462651948,-725.59,0.00020273,2]
[349857160,1737462651958,-500.0,0.00020273,2]
[349857161,1737462651967,-650.01,0.00020273,2]
[349857162,1737462651977,-500.0,0.00020273,2]
[349857163,1737462651987,-500.0,0.00020273,2]
[349857164,1737462651996,-500.0,0.00020273,2]
[349857165,1737462652006,-500.0,0.00020273,2]
[349857166,1737462652015,-554.28,0.00020273,2]
[349857167,1737462652024,-500.0,0.00020273,2]
[349857168,1737462652033,-500.0,0.00020273,2]
[349857169,1737462652043,-857.5,0.00020273,2]
[349857170,1737462652052,-1717.9,0.00020273,2]
[349857171,1737462652061,-500.0,0.00020273,2]
[349857172,1737462652073,-500.0,0.00020273,2]
[349857173,1737462652082,-1100.42,0.00020273,2]
[349857174,1737462652091,-500.0,0.00020273,2]
[349857175,1737462652101,-500.0,0.00020273,2]
[349857176,1737462652111,-535.14,0.00020273,2]
[349857177,1737462652120,-627.7174251,0.00020273,2]
[349857178,1737462652129,-549.22,0.00020273,2]
[349857179,1737462652139,-1944.53,0.00020273,2]
[349857180,1737462652148,-1243.7,0.00020273,2]
[349857181,1737462652157,-500.0,0.00020273,2]
[349857182,1737462652210,-500.0,0.00020273,2]
[349857183,1737462652220,-1058.2,0.00020273,2]
[349857184,1737462652229,-500.0,0.00020273,2]
[349857185,1737462652239,-505.75,0.00020273,2]
[349857186,1737462652248,-500.0,0.00020273,2]
[349857187,1737462652257,-1010.73,0.00020273,2]
[349857188,1737462652266,-500.0,0.00020273,2]
[349857189,1737462652276,-500.0,0.00020273,2]
[349857190,1737462652285,-623.27854637,0.00020273,2]
[349857191,1737462652294,-500.0,0.00020273,2]
[349857192,1737462652304,-889.96,0.00020273,2]
[349857193,1737462652313,-836.65,0.00020273,2]
[349857194,1737462652325,-500.0,0.00020273,2]
[349857195,1737462652335,-500.0,0.00020273,2]
[349857196,1737462652344,-500.0,0.00020273,2]
[349857197,1737462652353,-754.67,0.00020273,2]
[349857198,1737462652363,-663.33,0.00020273,2]
[349857199,1737462652372,-500.0,0.00020273,2]
[349857200,1737462652381,-500.0,0.00020273,2]
[349857201,1737462652391,-500.0,0.00020273,2]
[349857202,1737462652400,-629.98,0.00020273,2]
[349857203,1737462652409,-500.0,0.00020273,2]
[349857204,1737462652418,-2093.6,0.00020273,2]
[349857205,1737462652427,-500.0,0.00020273,2]
[349857206,1737462652437,-500.0,0.00020273,2]
[349857207,1737462652446,-500.0,0.00020273,2]
[349857208,1737462652455,-500.0,0.00020273,2]
[349857209,1737462652464,-1339.45,0.00020273,2]
[349857210,1737462652473,-500.0,0.00020273,2]
[349857211,1737462652482,-1723.67,0.00020273,2]
[349857212,1737462652492,-503.50850436,0.00020273,2]
[349857213,1737462652501,-500.0,0.00020273,2]
[349857214,1737462652511,-740.18,0.00020273,2]
[349857215,1737462652522,-869.64,0.00020273,2]
[349857216,1737462652532,-2486.71,0.00020273,2]
[349857217,1737462652541,-500.0,0.00020273,2]
[349857218,1737462652551,-726.91,0.00020273,2]
[349857219,1737462652561,-500.0,0.00020273,2]
[349857220,1737462652573,-500.0,0.00020273,2]
[349857221,1737462652582,-500.0,0.00020273,2]
[349857222,1737462652592,-614.47,0.00020273,2]
[349857223,1737462652601,-500.0,0.00020273,2]
[349857224,1737462652611,-500.0,0.00020273,2]
[349857225,1737462652624,-964.42,0.00020273,2]
[349857226,1737462652633,-2007.07,0.00020273,2]
[349857227,1737462652642,-500.0,0.00020273,2]
[349857228,1737462652652,-500.0,0.00020273,2]
[349857229,1737462652662,-637.76,0.00020273,2]
[349857230,1737462652671,-500.0,0.00020273,2]
[349857231,1737462652680,-500.0,0.00020273,2]